fUSD/lending_fUSD_20241024
["ID","MTS","AMOUNT","RATE_DAILY","PERIOD"]
[340761349,1729785046007,-2570.41893268,0.00063,120]
[340761350,1729785046018,-291.09122005,0.00063,120]
[340761351,1729785046030,-3169.18151143,0.00063,120]
[340761352,1729785046042,-1822.78396786,0.00063,120]
[340761353,1729785046054,-97820.09737088,0.00063,120]
[340761354,1729785046065,-719.23999998,0.00063,120]
[340761355,1729785046095,-300.0,0.00063,120]
[340761356,1729785046111,-3871.59662795,0.00063,120]
[340761357,1729785046123,-389.63124367,0.00063,120]
[340761358,1729785046156,-102679.99369278,0.00063,120]
[340761359,1729785046177,-344.831931,0.00063,120]
[340761361,1729785046379,-578.31850418,0.00063,120]
[340761362,1729785046393,-4876.07278133,0.00063,120]
[340761363,1729785046405,-1833.81575699,0.00063,120]
[340761364,1729785046416,-2293.82112,0.00063,120]
[340761365,1729785046433,-104340.5422231,0.00063,120]
[340761366,1729785046445,-327785.12366689,0.00063,120]
[340761367,1729785046455,-285956.57683323,0.00063,120]
[340761368,1729785046467,-690.600222,0.00063,120]
[340761369,1729785046479,-10019.93032725,0.00063,120]
[340761373,1729785713262,250.0,0.0001,2]
[340761374,1729785714601,-150.0,0.00012,2]
[340761375,1729785715059,-150.0,0.00012,2]
[340761376,1729785982629,-150.0,0.00013987,2]
[340761377,1729785982651,-350.0,0.00014,2]
[340761378,1729785982672,-160.77206183,0.00015242,2]
[340761379,1729785982695,-166.0,0.00015342,2]
[340761380,1729785982718,-157.21,0.00015342,2]
[340761381,1729785982741,-400.0,0.00016,2]
[340761382,1729785982762,-174.0,0.000169,2]
[340761383,1729785982783,-450.0,0.00018,2]
[340761384,1729785982803,-300.0,0.00019724,2]
[340761385,1729785982827,-262.01,0.00019725,2]
[340761386,1729786022057,300.0,0.00019725,2]
[340761387,1729786038137,-500.0,0.0002,2]
[340761388,1729786038158,-420.0,0.00021484,2]
[340761389,1729786038181,-550.0,0.00022,2]
[340761390,1729786038202,-1130.40707949,0.000239,2]
[340761391,1729786038224,-600.0,0.00024,2]
[340761392,1729786038246,-1130.40707948,0.000259,2]
[340761393,1729786038267,-650.0,0.00026,2]
[340761394,1729786038289,-700.0,0.00028,2]
[340761395,1729786038311,-750.0,0.0003,2]
[340761396,1729786038333,-302.0,0.0003,120]
[340761397,1729786038355,-163.11,0.00050168,2]
[340761398,1729786038377,-250.0,0.00051857,120]
[340761399,1729786038397,-869.0,0.000551,12]
[340761400,1729786038422,-157.21,0.0005589,2]
[340761401,1729786038443,-2369.29,0.00056338,2]
[340761402,1729786038467,-10869.0,0.000602,120]
[340761403,1729786038487,-150.0,0.00060234,2]
[340761404,1729786038506,-300.0,0.00060234,9]
[340761405,1729786038529,-250.0,0.00060291,120]
[340761406,1729786038550,-23900.0,0.00060571,2]
[340761407,1729786038573,-174.53,0.00060924,120]
[340761408,1729786038597,-152.0,0.00061119,3]
[340761409,1729786038619,-157.4,0.00061148,2]
[340761410,1729786038640,-150.43,0.00061185,2]
[340761411,1729786038664,-250.0,0.00061185,120]
[340761412,1729786038689,-259.25,0.00061256,30]
[340761413,1729786038710,-964.53,0.00061256,2]
[340761414,1729786038730,-300.0,0.00061256,2]
[340761415,1729786038752,-1000.0,0.00061358,120]
[340761416,1729786038772,-196.68,0.00061653,2]
[340761417,1729786038793,-29540.43,0.00061712,30]
[340761418,1729786038815,-305.559,0.00061914,120]
[340761419,1729786038837,-170.7302981,0.00061914,120]
[340761420,1729786038858,-329.78341403,0.0006236,2]
[340761421,1729786038879,-24630.6615,0.000628,2]
[340761422,1729786038900,-1003.5463,0.000628,2]
[340761423,1729786039098,-1059.04107563,0.000628,2]
[340761424,1729786161093,-45175.12939404,0.0005,120]
[340761426,1729786203689,170.08,0.00015342,2]
[340761435,1729786232064,-364.45564995,0.0005,120]
[340761436,1729786232119,-13694.19999999,0.0005,120]
[340761437,1729786232173,-10620.93121182,0.0005,120]
[340761438,1729786232183,-250.0,0.00052085,120]
[340761439,1729786232193,-10000.0,0.00060274,2]
[340761440,1729786232204,-10000.0,0.00060274,2]
[340761441,1729786232214,-10000.0,0.00060274,2]
[340761442,1729786232223,-250.0,0.00061951,120]
[340761443,1729786232232,-13077.0,0.000623,120]
[340761444,1729786232242,-1041.39386076,0.00062498,120]
[340761445,1729786232251,-613.7878,0.000627,2]
[340761446,1729786232261,-2977.03810654,0.000628,15]
[340761447,1729786232270,-160.0,0.000628,120]
[340761448,1729786232280,-160.0,0.000628,120]
[340761449,1729786232289,-180.0,0.000628,120]
[340761450,1729786232299,-160.0,0.000628,120]
[340761451,1729786232308,-160.0,0.000628,120]
[340761452,1729786232318,-180.0,0.000628,120]
[340761453,1729786232330,-261.0,0.000628,120]
[340761454,1729786232339,-261.0,0.000628,120]
[340761455,1729786232349,-261.0,0.000628,120]
[340761456,1729786232359,-261.0,0.000628,120]
[340761457,1729786232368,-261.0,0.000628,120]
[340761458,1729786232378,-261.0,0.000628,120]
[340761459,1729786232387,-261.0,0.000628,120]
[340761460,1729786232397,-261.0,0.000628,120]
[340761461,1729786232407,-261.0,0.000628,120]
[340761462,1729786232416,-261.0,0.000628,120]
[340761463,1729786232426,-261.0,0.000628,120]
[340761464,1729786232435,-271.945512,0.000628,120]
[340761465,1729786232445,-219.20759256,0.0006287,34]
[340761467,1729786232454,-279.8169264,0.0006287,28]
[340761469,1729786232463,-494.4045,0.0006287,2]
[340761470,1729786232473,-1895.3666,0.0006287,2]
[340761471,1729786232482,-500.0,0.0006288,2]
[340761472,1729786232491,-2500.0,0.00062899,120]
[340761473,1729786232501,-1053.98,0.00062899,120]
[340761474,1729786232510,-1053.98,0.00062899,120]
[340761475,1729786232519,-72416.4033,0.000629,2]
[340761476,1729786232529,-485.651,0.000629,2]
[340761477,1729786232539,-1000.0,0.000629,30]
[340761478,1729786232548,-675.2984,0.000629,2]
[340761479,1729786232557,-17204.9222,0.000629,2]
[340761480,1729786232567,-3966.7968,0.000629,2]
[340761481,1729786232577,-23077.3988,0.000629,2]
[340761482,1729786232587,-173.50482493,0.000629,91]
[340761483,1729786232597,-7500.0,0.000629,120]
[340761484,1729786232607,-32043.3912,0.000629,120]
[340761485,1729786232616,-727.54461923,0.000629,2]
[340761486,1729786232625,-2111.88021868,0.00062956,2]
[340761487,1729786232634,-98064.34855844,0.0006297,15]
[340761488,1729786232646,-4040.23977246,0.0006297,15]
[340761489,1729786232665,-6800.0,0.0006297,15]
[340761490,1729786232677,-11107.17317078,0.0006297,15]
[340761491,1729786232695,-661.83707709,0.0006297,15]
[340761500,1729786238103,-575.56031624,0.00062899,120]
[340761501,1729786238113,-16625.79101223,0.0006297,15]
[340761502,1729786238123,-192.61303116,0.0006297,7]
[340761503,1729786238132,-6240.88134504,0.0006297,15]
[340761504,1729786238141,-2856.3890415,0.0006297,13]
[340761505,1729786238150,-160.62638417,0.00062973,7]
[340761506,1729786238159,-500.0,0.00062973,2]
[340761507,1729786238169,-500.0,0.00062973,15]
[340761508,1729786238178,-14467.56906344,0.00062975,120]
[340761509,1729786238188,-500.0,0.00062979,120]
[340761510,1729786238197,-2500.0,0.00062979,120]
[340761511,1729786238207,-2500.0,0.00062979,120]
[340761512,1729786238216,-431.52199599,0.00062979,31]
[340761513,1729786238225,-188.28315172,0.00062979,120]
[340761514,1729786238235,-82582.85017849,0.0006298,120]
[340761515,1729786238251,-1876.39587739,0.0006298,120]
[340761516,1729786238263,-1301.15361802,0.0006298,120]
[340761517,1729786238274,-749.86877271,0.0006298,120]
[340761518,1729786238285,-6329.97878758,0.0006298,120]
[340761519,1729786238297,-1710.33992832,0.0006298,120]
[340761520,1729786238308,-1921.45432012,0.0006298,120]
[340761521,1729786238319,-87034.5565229,0.0006298,120]
[340761522,1729786238333,-3190.99998,0.0006298,120]
[340761523,1729786238344,-1715.14020956,0.0006298,120]
[340761524,1729786238355,-3435.45211209,0.0006298,120]
[340761525,1729786238738,-39453.83067306,0.0006298,120]
[340761526,1729786238971,-3740.96751239,0.0006298,120]
[340761527,1729786238986,-11713.05899456,0.0006298,120]
[340761528,1729786238997,-1992.9335772,0.0006298,120]
[340761529,1729786239107,-3809.65946132,0.0006298,120]
[340761533,1729786240109,-2129.8817,0.000628,2]
[340761534,1729786240119,-1330.6665791,0.0006298,120]
[340761535,1729786240130,-1525.9999996,0.0006298,120]
[340761536,1729786240141,-3709.78452067,0.0006298,120]
[340761537,1729786240153,-1441.40088987,0.0006298,120]
[340761538,1729786240165,-536.351876,0.0006298,120]
[340761539,1729786240274,-4377.31117126,0.0006298,120]
[340761540,1729786240287,-5030.00012,0.0006298,120]
[340761541,1729786240302,-289.6333911,0.0006298,120]
[340761542,1729786240358,-121328.21092669,0.0006298,120]
[340761543,1729786240367,-18722.6440351,0.0006298,15]
[340761544,1729786240376,-5712.778083,0.0006298,13]
[340761545,1729786240385,-2856.3890415,0.00062989,13]
[340761546,1729786240395,-2500.0,0.00062989,120]
[340761547,1729786240404,-43686.1694153,0.0006299,15]
[340761548,1729786240414,-67537.22108813,0.0006299,13]
[340761549,1729786240425,-792.81019852,0.0006299,13]
[340761551,1729786240440,-2713.70480544,0.0006299,13]
[340761554,1729786240466,-2640.13283207,0.0006299,13]
[340761556,1729786240478,-1328.67372404,0.0006299,13]
[340761603,1729786243069,-1000.0,0.0006299,13]
[340761606,1729786243123,-6005.64239998,0.0006299,13]
[340761607,1729786243180,-8622.24054998,0.0006299,13]
[340761608,1729786243191,-5481.63466213,0.0006299,13]
[340761609,1729786243202,-12420.72331671,0.0006299,13]
[340761610,1729786243212,-2500.0,0.00062999,120]
[340761611,1729786243221,-2500.0,0.00062999,120]
[340761612,1729786243231,-2500.0,0.00062999,120]
[340761613,1729786243241,-1300.06245329,0.00062999,120]
[340761614,1729786243255,-1164.92030688,0.00062999,120]
[340761615,1729786243264,-18091.48895393,0.00063,120]
[340761616,1729786243276,-33416.039998,0.00063,120]
[340761617,1729786243287,-5437.60329915,0.00063,120]
[340761618,1729786243303,-396.6954275,0.00063,120]
[340761619,1729786243346,-8454.45828736,0.00063,120]
[340761622,1729786245974,-503.69097015,0.00062999,120]
[340761623,1729786245984,-1098.80712985,0.00062999,120]
[340761624,1729786246133,-11964.26909213,0.00062999,120]
[340761627,1729786718950,150.0,0.0001973,2]
[340761629,1729786816348,158.45,0.00015342,2]
[340761630,1729787108678,16821.55793817,0.00014,2]
[340761631,1729787120608,151.97459113,9e-05,2]
[340761632,1729787120629,151.97459113,9e-05,2]
[340761633,1729787120649,151.97459113,9e-05,2]
[340761634,1729787120669,151.97459113,9e-05,2]
[340761635,1729787120689,151.97459113,9e-05,2]
[340761636,1729787120708,151.97459113,9e-05,2]
[340761637,1729787120728,151.97459113,9e-05,2]
[340761638,1729787120748,151.97459113,9e-05,2]
[340761639,1729787120767,151.97459113,9e-05,2]
[340761640,1729787120788,151.97459113,9e-05,2]
[340761641,1729787120808,151.97459113,9e-05,2]
[340761642,1729787120828,151.97459113,9e-05,2]
[340761643,1729787120849,151.97459113,9e-05,2]
[340761644,1729787120869,151.97459113,9e-05,2]
[340761645,1729787120889,151.97459113,9e-05,2]
[340761646,1729787120909,151.97459113,9e-05,2]
[340761647,1729787120930,151.97459113,9e-05,2]
[340761648,1729787120949,151.97459113,9e-05,2]
[340761649,1729787120969,151.97459113,9e-05,2]
[340761650,1729787120990,151.97459113,9e-05,2]
[340761651,1729787121012,151.97459113,9e-05,2]
[340761652,1729787121035,151.97459113,9e-05,2]
[340761653,1729787121070,1334.3484539,9e-05,2]
[340761654,1729787130797,151.97459113,0.000101,2]
[340761655,1729787130817,151.97459113,0.000101,2]
[340761656,1729787130838,151.97459113,0.000101,2]
[340761657,1729787130859,151.97459113,0.000101,2]
[340761658,1729787130880,151.97459113,0.000101,2]
[340761659,1729787130900,151.97459113,0.000101,2]
[340761660,1729787130922,151.97459113,0.000101,2]
[340761661,1729787130942,151.97459113,0.000101,2]
[340761662,1729787130963,151.97459052,0.000101,2]
[340761663,1729787130988,18386.71878095,0.000101,2]
[340761664,1729787245110,-4356.68812985,0.00012666,2]
[340761665,1729787245130,-1407.92014578,0.000139,2]
[340761666,1729787245151,-485.02974616,0.000139,2]
[340761667,1729787245172,-543.25481841,0.00013973,2]
[340761668,1729787245192,-302.0653972,0.00013999,2]
[340761669,1729787245218,-13239.83544,0.00014,2]
[340761670,1729787281406,150.0,0.0001,2]
[340761671,1729787281438,150.0,0.0001,2]
[340761672,1729787281472,150.0,0.0001,2]
[340761673,1729787281505,150.0,0.0001,2]
[340761674,1729787281535,150.0,0.0001,2]
[340761675,1729787281578,650.4854188,0.0001,2]
[340761679,1729787357189,-300.0,0.00012579,2]
[340761680,1729787357211,-300.0,0.00012899,2]
[340761681,1729787357239,-450.0,0.000129,2]
[340761682,1729787357262,-218.98734392,0.000139,2]
[340761683,1729787357283,-938.61343052,0.000139,2]
[340761684,1729787357303,-323.3531641,0.000139,2]
[340761685,1729787357327,-46864.89891838,0.0001399,2]
[340761686,1729787359105,-244.8398106,0.000139,2]
[340761687,1729787359128,-990.85740388,0.0001399,2]
[340761718,1729787432169,-515.27828049,0.0001399,2]
[340761719,1729787432181,-429.30461586,0.0001399,2]
[340761720,1729787432228,-433.45122948,0.0001399,2]
[340761721,1729787432239,-1259.58718006,0.0001399,2]
[340761722,1729787432250,-4424.59768256,0.0001399,2]
[340761723,1729787432294,-370.19261992,0.0001399,2]
[340761724,1729787432454,-142254.82906337,0.0001399,2]
[340761725,1729787432463,-364.17534339,0.0001399,2]
[340761726,1729787432472,-123333.02555832,0.00014,2]
[340761755,1729787438305,-17021.53766355,0.00014,2]
[340761756,1729787438363,-138094.42699317,0.00014,2]
[340761757,1729787438375,-16932.32639603,0.00014,2]
[340761758,1729787438698,-16153.68747997,0.00014,2]
[340761759,1729787438727,-10725.14157599,0.00014,2]
[340762035,1729787441634,-76463.0,0.00014,2]
[340762149,1729787442786,-6716.82307888,0.00014,2]
[340762156,1729787442841,-2895.45109478,0.00014,2]
[340762158,1729787442856,-1945.8598397,0.00014,2]
[340762161,1729787442871,-347.405,0.00014,2]
[340762223,1729787444272,-233382.47199147,0.00014,2]
[340762230,1729787444334,-1355.91814205,0.00014,2]
[340762233,1729787444350,-3427.618579,0.00014,2]
[340762235,1729787444365,-6020.0,0.00014,2]
[340762250,1729787444502,-23656.01760001,0.00014,2]
[340762407,1729787446210,-111479.63549288,0.00014,2]
[340762414,1729787446272,-343.02749297,0.00014,2]
[340762421,1729787446330,-361.41559764,0.00014,2]
[340762423,1729787446344,-277.74084169,0.00014,2]
[340762425,1729787446355,-1688.4,0.00014,2]
[340762477,1729787526635,150.0,0.0001,2]
[340762478,1729787526658,100.0,0.0001,2]
[340762479,1729787588206,34961.6623728,0.0001399,3]
[340762480,1729787589503,15038.3376272,0.0001399,3]
[340762482,1729787707457,-50000.0,0.0001399,3]
[340762483,1729787709668,-50000.0,0.0001399,3]
[340762484,1729787710855,-50000.0,0.0001399,3]
[340762485,1729787711976,-97.9202438,0.0001399,3]
[340762486,1729787728449,-150.0,0.00011989,2]
[340762487,1729787728473,-300.0,0.00012,2]
[340762488,1729787728493,-377.08391433,0.00013699,2]
[340762489,1729787728516,-496.03918944,0.00013799,2]
[340762490,1729787728539,-496.03918942,0.0001385,2]
[340762491,1729787728563,-300.0,0.00013899,2]
[340762492,1729787728585,-2679.33429585,0.000139,2]
[340762493,1729787728606,-496.03918942,0.000139,2]
[340762494,1729787728630,-214.23483424,0.000139,2]
[340762495,1729787728651,-253.3072,0.000139,2]
[340762496,1729787728673,-165.57352147,0.000139,2]
[340762497,1729787728696,-537.48724428,0.00013973,2]
[340762498,1729787728720,-500.0,0.00013999,2]
[340762499,1729787728745,-167.01817382,0.00013999,2]
[340762500,1729787728767,-500.0,0.00013999,2]
[340762501,1729787728789,-500.0,0.00013999,2]
[340762502,1729787728812,-500.0,0.00013999,2]
[340762503,1729787728835,-500.0,0.00013999,2]
[340762504,1729787728858,-500.0,0.00013999,2]
[340762505,1729787728880,-500.0,0.00013999,2]
[340762506,1729787728902,-573.7776222,0.00013999,2]
[340762507,1729787729055,-150.0,0.00013999,2]
[340762508,1729787729077,-5198843.1026942,0.00014,2]
[340762509,1729787729100,-268.56303781,0.00014,2]
[340762510,1729787729123,-350.0,0.00014,2]
[340762511,1729787733520,150.0,0.0001385,2]
[340762512,1729787733541,150.0,0.0001385,2]
[340762513,1729787733563,150.0,0.0001385,2]
[340762514,1729787733601,150.0,0.0001385,2]
[340762515,1729787733630,150.0,0.0001385,2]
[340762516,1729787733662,150.0,0.0001385,2]
[340762517,1729787733696,150.0,0.0001385,2]
[340762518,1729787733726,132.37724129,0.0001385,2]
[340762519,1729787745468,-412364.05764459,0.00015,2]
[340762521,1729788193681,-150.0,0.00015329,2]
[340762522,1729788193710,-164.14,0.00015342,2]
[340762523,1729788193737,-523.14907727,0.000159,2]
[340762524,1729788193764,-400.0,0.00016,2]
[340762525,1729788193792,-450.0,0.00018,2]
[340762526,1729788193820,-1182.37724129,0.00018,2]
[340762527,1729788193846,-168.23,0.00019178,2]
[340762528,1729788193873,-1220.03,0.00019726,2]
[340762529,1729788261728,-500.0,0.0002,2]
[340762530,1729788261749,-440.55,0.0002,2]
[340762531,1729788261770,-150.99,0.0002,2]
[340762533,1729788281659,-8242.07368144,0.000264,2]
[340762534,1729788450136,-2940.75013449,0.000264,2]
[340762535,1729788481380,300.0,0.00019725,2]
[340762539,1729788632312,-522.70422095,0.000264,2]
[340762540,1729788632322,-1759.21,0.00029,3]
[340762541,1729788632333,-596.5,0.0003,3]
[340762542,1729788632343,-634.03590513,0.000379,2]
[340762543,1729788632353,-21.54987401,0.0003818,2]
[340762544,1729788632369,-949.47778233,0.0003818,2]
[340762545,1729788632379,-553.428,0.0003818,50]
[340762546,1729788632388,-171.863,0.0003818,50]
[340762547,1729788632397,-158.45,0.00039671,2]
[340762548,1729788632407,-1000.0,0.00039924,2]
[340762549,1729788632416,-4786.69,0.000417,7]
[340762550,1729788632426,-1112.82433171,0.00042,2]
[340762551,1729788632438,-657.36,0.00042,2]
[340762552,1729788632449,-286.18192272,0.00042,2]
[340762553,1729788632488,-408.84094785,0.00042,2]
[340762554,1729788632500,-332.82649927,0.00042,2]
[340762555,1729788632512,-430.90278348,0.00042,2]
[340762556,1729788632524,-3294.98109314,0.00042,2]
[340762557,1729788632535,-499.915646,0.00042,2]
[340762558,1729788632546,-3133.18062,0.00042,2]
[340762559,1729788632557,-1096.40924013,0.00042,2]
[340762560,1729788632581,-5502.06785384,0.00042,2]
[340762561,1729788632591,-4222.03338274,0.00043006,2]
[340762562,1729788632600,-1000.0,0.00044914,2]
[340762563,1729788632609,-250.0,0.00046709,120]
[340762564,1729788632618,-2850.0,0.00047141,2]
[340762565,1729788632628,-171.39,0.0004752,120]
[340762566,1729788632637,-428.25568314,0.00047543,2]
[340762567,1729788632646,-250.0,0.00047658,120]
[340762568,1729788632656,-648.19432055,0.00049904,120]
[340762569,1729788632675,-351.80567945,0.00049904,120]
[340762570,1729788632687,-6510.29432055,0.000512,2]
[340762575,1729788638488,-511.21118908,0.000512,2]
[340762576,1729788638500,-859.25,0.000512,2]
[340762577,1729788638511,-1849.57471801,0.000512,2]
[340762578,1729788638658,-14169.66977236,0.000512,2]
[340762579,1729788638667,-172.49,0.00051272,2]
[340762580,1729788638676,-160.89,0.00051676,2]
[340762587,1729788638826,-225.31,0.00052277,120]
[340762589,1729788638837,-259.25,0.00052606,2]
[340762591,1729788638846,-250.0,0.00053652,120]
[340762592,1729788638855,-500.0,0.00054795,120]
[340762594,1729788638864,-1000.0,0.00054895,120]
[340762596,1729788638873,-160.89,0.00055586,2]
[340762598,1729788638882,-553.429,0.00056135,108]
[340762600,1729788638891,-76765.05044199,0.00056164,120]
[340762602,1729788638900,-1221.8,0.00057534,120]
[340762604,1729788638909,-351.8909082,0.00057999,120]
[340762606,1729788638918,-40000.0,0.00058,5]
[340762608,1729788638927,-717.02166789,0.00059,120]
[340762610,1729788638937,-4031.37822189,0.00059396,15]
[340762612,1729788638947,-160.89,0.00059496,2]
[340762614,1729788638956,-1000.0,0.00059588,120]
[340762616,1729788638965,-1000.0,0.00059862,120]
[340762618,1729788638975,-1000.0,0.00059885,120]
[340762620,1729788638985,-226.77849863,0.0006,2]
[340762621,1729788638994,-12499.99,0.0006,120]
[340762623,1729788639003,-3266.11,0.0006,120]
[340762625,1729788639013,-4023.42,0.0006,120]
[340762627,1729788639022,-4031.37822184,0.0006003,15]
[340762629,1729788639034,-794.8893,0.00060073,2]
[340762631,1729788639043,-1000.0,0.00060136,120]
[340762633,1729788639053,-10503.4581,0.00060173,2]
[340762635,1729788639062,-10000.0,0.00060274,2]
[340762637,1729788639072,-10000.0,0.000603,120]
[340762639,1729788639082,-10000.0,0.000603,120]
[340762641,1729788639091,-1000.0,0.0006041,120]
[340762643,1729788639103,-1575.00134982,0.00060547,120]
[340762645,1729788639112,-4031.37822184,0.00060665,15]
[340762647,1729788639121,-1500.0,0.00060825,60]
[340762649,1729788639130,-10186.8923,0.000609,2]
[340762651,1729788639139,-493.2447,0.000609,30]
[340762653,1729788639148,-1000.0,0.00060958,120]
[340762655,1729788639157,-1500.0,0.00060981,60]
[340762657,1729788639166,-1500.0,0.00060995,60]
[340762659,1729788639175,-1000.0,0.00061,120]
[340762661,1729788639184,-1000.0,0.00061,120]
[340762663,1729788639193,-1000.0,0.00061,120]
[340762665,1729788639202,-1000.0,0.00061,120]
[340762667,1729788639211,-1000.0,0.00061,120]
[340762669,1729788639220,-1000.0,0.00061,120]
[340762671,1729788639228,-1000.0,0.00061,120]
[340762673,1729788639237,-500.0,0.000612,120]
[340762675,1729788639247,-4031.37822184,0.00061299,15]
[340762676,1729788639255,-1500.0,0.00061501,60]
[340762678,1729788639265,-150.0,0.00061504,30]
[340762680,1729788639274,-1000.0,0.00061506,120]
[340762682,1729788639283,-1500.0,0.00061537,60]
[340762684,1729788639292,-150.0,0.00061544,30]
[340762686,1729788639301,-150.0,0.00061545,30]
[340762688,1729788639310,-150.0,0.00061548,30]
[340762690,1729788639321,-150.0,0.00061572,30]
[340762691,1729788639330,-150.0,0.00061578,30]
[340762692,1729788639339,-150.0,0.00061585,30]
[340762693,1729788639348,-150.0,0.00061587,30]
[340762694,1729788639357,-150.0,0.00061588,30]
[340762696,1729788639366,-505.9120352,0.00061593,60]
[340762698,1729788639375,-150.0,0.00061594,30]
[340762699,1729788639384,-150.0,0.00061609,30]
[340762701,1729788639394,-150.0,0.00061616,30]
[340762703,1729788639403,-150.0,0.00061617,30]
[340762705,1729788639411,-150.0,0.00061626,30]
[340762707,1729788639421,-2500.0,0.00061626,2]
[340762709,1729788639429,-150.0,0.00061637,30]
[340762711,1729788639441,-500.0,0.00061643,120]
[340762713,1729788639450,-500.0,0.00061643,120]
[340762714,1729788639459,-500.0,0.00061643,120]
[340762716,1729788639468,-500.0,0.00061643,120]
[340762718,1729788639477,-150.0,0.00061655,30]
[340762719,1729788639486,-1500.0,0.00061656,60]
[340762721,1729788639495,-150.0,0.00061683,30]
[340762723,1729788639504,-150.0,0.00061694,30]
[340762725,1729788639513,-150.0,0.00061701,30]
[340762726,1729788639522,-1500.0,0.00061722,60]
[340762728,1729788639531,-150.0,0.00061726,30]
[340762730,1729788639540,-150.0,0.00061731,30]
[340762732,1729788639549,-150.0,0.00061744,30]
[340762734,1729788639558,-150.0,0.00061748,30]
[340762736,1729788639569,-150.0,0.00061779,30]
[340762738,1729788639578,-671.58377235,0.00061781,7]
[340762740,1729788639587,-150.0,0.00061787,30]
[340762742,1729788639597,-150.0,0.00061814,30]
[340762744,1729788639606,-4031.37822184,0.00061933,15]
[340762746,1729788639615,-1000.0,0.00062,120]
[340762748,1729788639625,-1000.0,0.00062,120]
[340762750,1729788639634,-357.82,0.00062,120]
[340762751,1729788639643,-2455.9623977,0.00062,120]
[340762753,1729788639652,-1000.0,0.00062054,120]
[340762755,1729788639662,-187.45547996,0.00062365,28]
[340762757,1729788639670,-500.0,0.000624,120]
[340762759,1729788639680,-500.0,0.000624,120]
[340762761,1729788639690,-155.83397859,0.00062413,30]
[340762763,1729788639699,-500.0,0.0006245,120]
[340762765,1729788639709,-74016.4124757,0.00062455,14]
[340762767,1729788639719,-4926.99460016,0.00062455,13]
[340762769,1729788639728,-155.99,0.00062455,120]
[340762771,1729788639738,-500.0,0.00062465,120]
[340762772,1729788639747,-507.63739029,0.00062465,120]
[340762774,1729788639756,-2158.58,0.00062465,120]
[340762776,1729788639766,-2158.58,0.00062465,120]
[340762778,1729788639775,-2158.58,0.00062465,120]
[340762780,1729788639785,-2158.58,0.00062465,120]
[340762782,1729788639794,-2158.58,0.00062465,120]
[340762784,1729788639804,-2158.58,0.00062465,120]
[340762786,1729788639813,-2158.58,0.00062465,120]
[340762788,1729788639823,-2158.58,0.00062465,120]
[340762790,1729788639832,-2158.58,0.00062465,120]
[340762792,1729788639841,-8402.07,0.00062465,120]
[340762794,1729788639852,-702.39,0.00062465,120]
[340762796,1729788639861,-8402.07,0.00062465,120]
[340762798,1729788639870,-500.0,0.00062465,120]
[340762800,1729788639879,-702.39,0.00062465,120]
[340762802,1729788639889,-2158.58,0.00062465,120]
[340762804,1729788639898,-500.0,0.00062465,120]
[340762806,1729788639907,-8402.07,0.00062465,120]
[340762808,1729788639916,-500.0,0.00062465,120]
[340762810,1729788639925,-2158.58,0.00062465,120]
[340762811,1729788639934,-702.39,0.00062465,120]
[340762813,1729788639943,-8402.07,0.00062465,120]
[340762815,1729788639953,-500.0,0.00062465,120]
[340762817,1729788639962,-2158.58,0.00062465,120]
[340762819,1729788639971,-500.0,0.00062465,120]